Cogmind - Beta 10 X2 @@@ ROGUE MODE // 2020.09.02 @ 18:20:14 Player: PlasticHeart Result: Destroyed by as-09868 with Assembled Rifle Performance ------------- Evolutions (0) 0 Regions Visited (2) 400 Robots Destroyed (34) 170 Value Destroyed (441) 441 Prototype IDs (2) 40 Alien Tech Used (0) 0 Bonus (-162) -162 TOTAL SCORE: 889 Bonus ------- Friendly Fire -162 Cogmind --------- Core Integrity 0/250 Matter 233/300 Energy 100/100 System Corruption 1% Temperature Cool (0) Movement Rolling (120) Ox4 Location -10/Mines Parts ------- > --- POWER (1) -------- (None) > --- PROPULSION (2) --- Wheel > --- UTILITY (2) ------ Large Storage Unit High-capacity Storage Unit > --- WEAPON (2) ------- Mini Grenade Launcher > --- INVENTORY (18) --- Wheel Wheel Compact Wheel Compact Wheel Large Storage Unit Hardened Light Armor Plating Hardened Light Armor Plating Beam Cannon Assault Rifle Assault Rifle Assault Rifle Assault Rifle Improved Light Cannon Improved Light Cannon Improved Light Cannon Improved Light Cannon Mini Grenade Launcher Peak State ------------ > --- POWER ------------ Ion Engine > --- PROPULSION ------- Compact Wheel Compact Wheel > --- UTILITY ---------- Large Storage Unit Hardened Light Armor Plating > --- WEAPON ----------- Light Assault Rifle Mini Grenade Launcher > --- INVENTORY -------- Compact Wheel High-capacity Storage Unit Hardened Light Armor Plating Hardened Light Armor Plating Beam Cannon Light Assault Rifle Light Assault Rifle Mini Grenade Launcher [Rating: 10] Favorites ----------- Power Ion Engine Engine Ion Engine Propulsion Wheel Wheel Wheel Utility Large Storage Unit Storage Large Storage Unit Protection Hardened Light Armor Plating Weapon Assault Rifle Ballistic Gun Assault Rifle Launcher Mini Grenade Launcher Build | -11 -10 -10 ------- Run | Scr Mat Min Slots Evolved . | . . . Power . | . . . Propulsion . | . . . Utility . | . . . Weapon . | . . . Parts Attached 19 | 4 14 1 Power 2 | 1 1 . Engine 2 | 1 1 . Core . | . . . Reactor . | . . . Propulsion 5 | 1 4 . Treads . | . . . Leg . | . . . Wheel 5 | 1 4 . Hover . | . . . Flight . | . . . Utility 4 | . 4 . Device . | . . . Storage 3 | . 3 . Processor . | . . . Hackware . | . . . Protection 1 | . 1 . Artifact . | . . . Weapon 8 | 2 5 1 Energy Gun . | . . . Energy Cannon . | . . . Ballistic Gun 6 | 2 4 . Ballistic Cannon . | . . . Launcher 2 | . 1 1 Special Weapon . | . . . Impact Weapon . | . . . Slashing Weapon . | . . . Piercing Weapon . | . . . Special Melee Weapon . | . . . Unidentified Prototypes . | . . . Parts Lost 4 | . 1 3 Power 2 | . 1 1 Propulsion 1 | . . 1 Utility . | . . . Weapon 1 | . . 1 Highest Loss Streak 3 | . 1 3 Average Slot Usage (%) 96 | . 97 85 Engine 12 | . 12 7 Wheel 27 | . 27 21 Storage 24 | . 23 28 Protection 2 | . 3 . Ballistic Gun 27 | . 27 14 Naked Turns . | . . . Heaviest Build 57 | 7 57 56 Greatest Support 32 | 16 32 20 Greatest Overweight (x) 2 | 1 2 2 Average Overweight (x) 1 | . 1 2 Largest Inventory Capacity 18 | 4 18 18 Average Capacity 14 | 4 15 18 Most Carried 18 | 4 18 17 Average Carried 12 | 3 13 17 Final Capacity 18 | 4 18 18 Final Carried 17 | 4 17 17 Class Distribution -------------------- 100% | Mutant Dominant Class ---------------- Mutant | -10/Materials Mutant | -10/Mines Resources | -11 -10 -10 ----------- Run | Scr Mat Min Matter Collected 699 | 246 453 . Remotely . | . . . Salvage Created 687 | 88 513 86 Parts 31 | 1 29 1 Haulers Intercepted 2 | . 2 . Recyclers Shooed . | . . . Parts Field Recycled . | . . . Retrieved Matter . | . . . Parts Self-Destructed . | . . . Prevented . | . . . Kills | -11 -10 -10 ------- Run | Scr Mat Min Combat Hostiles Destroyed 28 | . 11 17 Guns 9 | . 9 . AOE 19 | . 2 17 Classes Destroyed 7 | 1 4 2 Hauler 2 | . 2 . Recycler 1 | 1 . . Watcher 2 | . 2 . Swarmer 1 | . 1 . Grunt 10 | . 10 . Assembled 17 | . . 17 Guerrilla 1 | . . 1 Best Kill Streak 17 | 1 4 17 Combat Bots Only 17 | . 3 17 Max Kills in Single Turn 7 | 1 1 7 Gunslinging . | . . . Exploded 7 | . 1 7 Melee . | . . . Uniques/NPCs Destroyed . | . . . Combat | -11 -10 -10 -------- Run | Scr Mat Min Damage Taken 1008 | . 547 461 Core 252 | . 118 134 Absorbed by Shields . | . . . Core Remaining (%) 100 | 100 . . Volleys Fired 70 | 3 59 8 Largest 2 | 2 2 2 Hottest 40 | 40 40 40 Shots Fired 131 | 6 115 10 Gun 122 | 6 112 4 Cannon . | . . . Launcher 9 | . 3 6 Special . | . . . Kinetic 122 | 6 112 4 Thermal . | . . . Explosive 9 | . 3 6 Electromagnetic . | . . . Robot Hit Streak 10 | 4 10 3 Robot Miss Streak 4 | 1 4 1 Penetration Max . | . . . Secondary Targets . | . . . Shots Hit Robots 82 | 4 72 6 Core Hits 71 | 2 30 39 Critical Hits 2 | 1 1 . Critical Kills 1 | 1 . . Critical Parts Destroyed 1 | . 1 . Melee Attacks . | . . . Impact . | . . . Slashing . | . . . Piercing . | . . . Sneak Attacks . | . . . Combat Hostiles . | . . . Follow-up Attacks . | . . . Damage Inflicted 2670 | 44 1208 1418 Guns 913 | 44 849 20 Cannons . | . . . Explosions 1757 | . 359 1398 Melee . | . . . Ramming . | . . . Kinetic 913 | 44 849 20 Thermal . | . . . Explosive 1757 | . 359 1398 Electromagnetic . | . . . Impact . | . . . Slashing . | . . . Piercing . | . . . Highest Corruption 1 | . 1 1 Average Corruption 1 | . 1 1 Corruption Purged . | . . . Effects 1 | . 1 . Message Errors 1 | . 1 . Overload Shots . | . . . Overflow Damage 97 | . 34 63 Projectiles . | . . . Explosions 97 | . 34 63 Melee . | . . . Knockbacks . | . . . Impact . | . . . Kinetic . | . . . Secondary . | . . . Self-Inflicted Damage 10 | . . 10 Shots 2 | . . 2 Rammed . | . . . Targets Rammed . | . . . Kicked . | . . . Crushed . | . . . Highest Temperature 113 | . 113 35 Average Temperature 53 | . 62 16 Received Heat Transfer 449 | . 282 167 Siege Activations . | . . . Robots Corrupted . | . . . Combat Hostiles . | . . . Parts Fried . | . . . Impact Corruptions . | . . . Robots Melted . | . . . Combat Hostiles . | . . . Parts Melted . | . . . Heat Transferred . | . . . Parts Sabotaged . | . . . Parts Stolen . | . . . Parts Stripped . | . . . Power Chain Reactions . | . . . Missiles Intercepted . | . . . Alert | -11 -10 -10 ------- Run | Scr Mat Min Peak Influence 143 | 5 143 60 Average Influence 53 | 1 57 52 Maximum Alert Level . | . . . Low Security (%) 100 | 100 100 100 Level 1 . | . . . Level 2 . | . . . Level 3 . | . . . Level 4 . | . . . Level 5 . | . . . High Security . | . . . Max Security . | . . . Squads Dispatched 2 | . 2 . Investigation . | . . . Extermination . | . . . Reinforcement 2 | . 2 . Assault . | . . . Garrison . | . . . Intercept . | . . . Construction Impeded . | . . . Haulers Reinforced . | . . . Stealth | -11 -10 -10 --------- Run | Scr Mat Min Distress Signals 5 | . 5 . Communications Jammed . | . . . Distress Signals . | . . . Times Spotted 53 | . 31 22 Peak Tracking Total 20 | . 8 20 Tactical Retreats 6 | . 6 . Traps | -11 -10 -10 ------- Run | Scr Mat Min Traps Triggered 1 | . 1 . Indirectly . | . . . Trap Hack Attempts . | . . . Triggered . | . . . Disarmed 6 | . 6 . Reprogrammed . | . . . Reused . | . . . Traps Extracted . | . . . Installed . | . . . Triggered . | . . . Machines | -11 -10 -10 ---------- Run | Scr Mat Min Machines Disabled 1 | . . 1 Max in Single Turn 1 | . . 1 Machines Sabotaged . | . . . Garrisons Compromised . | . . . Overloaded Fab Kills . | . . . Fab Network Shutdowns . | . . . Hacking | -11 -10 -10 --------- Run | Scr Mat Min Machines Accessed 6 | . 6 . Terminals 6 | . 6 . Fabricators . | . . . Repair Stations . | . . . Recycling Units . | . . . Scanalyzers . | . . . Garrison Access . | . . . Total Hacks 14 | . 14 . Successful 11 | . 11 . Failed 3 | . 3 . Catastrophic . | . . . Database Lockouts . | . . . Manual 4 | . 4 . Terminals 14 | . 14 . Fabricators . | . . . Repair Stations . | . . . Recycling Units . | . . . Scanalyzers . | . . . Garrison Access . | . . . Terminal Hacks 10 | . 10 . Robot Analysis 1 | . 1 . Prototype ID Bank 1 | . 1 . Level Access Points 1 | . 1 . Unreport Threat 1 | . 1 . Locate Traps 3 | . 3 . Disarm Traps 1 | . 1 . Hauler Manifests 1 | . 1 . Zone Layout 1 | . 1 . Fabricator Hacks . | . . . Repair Station Hacks . | . . . Recycling Unit Hacks . | . . . Scanalyzer . | . . . Garrison Access Hacks . | . . . Unauthorized Hacks 1 | . 1 . Terminals 1 | . 1 . Botnet 1 | . 1 . Fabricators . | . . . Repair Stations . | . . . Recycling Units . | . . . Scanalyzers . | . . . Garrison Access . | . . . Data Cores Recovered . | . . . Used . | . . . Hacking Detections 4 | . 4 . Full Trace Events . | . . . Feedback Events . | . . . Feedback Blocked . | . . . Robot Schematics Acquired . | . . . Robots Built . | . . . Matter . | . . . Time . | . . . Total Robot Build Rating . | . . . Part Schematics Acquired . | . . . Parts Built . | . . . Matter . | . . . Time . | . . . Total Part Build Rating . | . . . Parts Repaired . | . . . Time . | . . . Parts Recycled . | . . . Recycled Matter . | . . . Retrieved Matter . | . . . Retrieved Components . | . . . Parts Scanalyzed . | . . . Part Schematics Acquired . | . . . Parts Damaged . | . . . Bothacking | -11 -10 -10 ------------ Run | Scr Mat Min Used RIF Installer . | . . . Robots Hacked . | . . . Non-combat . | . . . Combat . | . . . Robot Hacks Applied . | . . . Relay Couplers Released . | . . . Robots Rewired . | . . . Allies Hacked . | . . . Hacks Repelled . | . . . Allies | -11 -10 -10 -------- Run | Scr Mat Min Total Allies . | . . . Largest Group . | . . . Highest-Rated Group . | . . . Highest-Rated Ally . | . . . Total Orders . | . . . Ally Attacks . | . . . Total Damage . | . . . Kills . | . . . Allies Corrupted . | . . . Allies Melted . | . . . Intel | -11 -10 -10 ------- Run | Scr Mat Min Robot Analysis Total 1 | . 1 . Derelict Logs Recovered . | . . . Drone Launches . | . . . Drone Recoveries . | . . . Exploration | -11 -10 -10 ------------- Run | Scr Mat Min Turns Passed 714 | 43 649 22 Spaces Moved 439 | 31 406 2 Core 14 | 14 . . Treads . | . . . Legs . | . . . Wheels 425 | 17 406 2 Hover . | . . . Flight . | . . . Fastest Speed 50 | 50 100 100 Average Speed 102 | 82 104 100 Slowest Speed 110 | 100 110 100 Overloaded Moves . | . . . Propulsion Burnouts . | . . . Robots Hopped . | . . . Cave-ins Triggered . | . . . Exploration Rate (%) 31 | 4 84 5 Regions Visited 2 Branch Regions 1 Pre-discovered Areas . | . . . Known Exits Taken . | . . . Unknown Exits Taken 2 | 1 1 . Scrap Searched . | . . . Spaces Dug . | . . . Terrain Destroyed 74 | . 31 43 Melee . | . . . Projectile . | . . . AOE 74 | . 31 43 Actions | -11 -10 -10 --------- Run | Scr Mat Min Total 573 | 41 521 11 Wait 14 | . 14 . Move 437 | 30 405 2 Hop . | . . . Pick Up 23 | 4 19 . Fast Attach 7 | 4 3 . Attach 2 | . 2 . Detach . | . . . Swap 10 | . 9 1 Drop 10 | . 10 . Fire 70 | 3 59 8 Melee . | . . . Ram . | . . . Kick . | . . . Crush . | . . . Escape Stasis . | . . . Rewire . | . . . Trap . | . . . Miscellaneous . | . . . Route ------- -11/Scrapyard -10/Materials (discovered 5 exits: *Mat x3 / [*Min x2]) -10/Mines History --------- Turn | Location | Event 12 | -11/Scrapyard | Discovered new exit (range 16) 44 | -11/Scrapyard | Entered Materials 318 | -10/Materials | Build established: Mutant 321 | -10/Materials | Discovered new exit (range 15) 435 | -10/Materials | Discovered new exit (range 13) 498 | -10/Materials | Identified exit to Materials 676 | -10/Materials | Discovered new exit (range 15) 693 | -10/Materials | Entered Mines 694 | -10/Mines | Assembled infested the area 695 | -10/Mines | Core integrity fell below 50% 699 | -10/Mines | Assisted by a Guerilla fighting off Assembled 712 | -10/Mines | Core integrity fell below 20% 715 | -10/Mines | Destroyed by as-09868 with Assembled Rifle Last Messages --------------- 00705_ Destroyed Asb. Hover Unit. 00705_ as-87009 destroyed. 00705_ Laser Drill disabled. 00705_ Wheel destroyed. 00707_ as-32960 destroyed. 00707_ as-97026 destroyed. 00707_ as-49330 destroyed. 00707_ as-99824 destroyed. 00707_ as-05472 destroyed. 00707_ as-51911 destroyed. 00707_ as-97379 destroyed. 00707_ Ion Engine destroyed. 00709_ as-89479 destroyed. 00709_ as-48582 destroyed. 00709_ as-74267 destroyed. 00709_ as-55703 destroyed. 00711_ as-21926 destroyed. 00713_ The unstable cave ceiling collapses. 00713_ Assault Rifle destroyed. 00713_ Destroyed Asb. Hover Unit. Map ----- +----------------------------------------------------+ | | | | | | | | | | | | | | | | | | | | | | | | | | | | | | | | | | | | | | | | | | | | | ???????????????????######?????????????????? | | ?????????????????## #####?????????????? | | ??????????????#### #?????????????? | | ??????????????# @ #???????????? | | ??????????????# #??????????? | | ??????????????# " gg #???????????? | | ??????????????# "" a a #???????????? | | ??????????????# """ #?????????? | | ??????????????# # #?????????? | | ??????????????##T##### < #???????????? | | ???????????????##?????## ##???????????? | | ???????????????????????? ##????????????? | | ????????????????????????? #?????????????? | | ?????????????????????????? #?????????????? | | ??????????????????????????? #?????????????? | | ???????????????????????????#??????????????? | | ??????????????????????????????????????????? | | ??????????????????????????????????????????? | | ??????????????????????????????????????????? | | ??????????????????????????????????????????? | | ??????????????????????????????????????????? | | ??????????????????????????????????????????? | | ??????????????????????????????????????????? | | ??????????????????????????????????????????? | | ??????????????????????????????????????????? | | ??????????????????????????????????????????? | | ??????????????????????????????????????????? | | ??????????????????????????????????????????? | +----------------------------------------------------+ Best States ------------- Heat Dissipation 25 Energy Generation 10 Energy Capacity 250 Matter Stores 300 Matter Capacity 300 Sight Range 16 Terrain Scan Density 10 Armor Coverage 150 Evasion (%) 50 Item Schematics ----------------- None Robot Schematics ------------------ None Fabricated ------------ Nothing Alien Tech Used ----------------- None Achievements -------------- None Challenges ------------ None Game ------ Seed FluxChromaticInverter Manual? 0 Play Time 00:09:05 Cumulative 771.4 hours Start 2020.09.02 @ 18:10:54 End 2020.09.02 @ 18:20:14 Sessions 1 Manual Loads 0 Difficulty Rogue Special Mode None Game No. 410 Rogue 410 Adventurer 0 Explorer 0 Win Type - Total 63 Types 34/5/13/6/1/1/3 Lore% 90 Gallery% 89 Achievement% 75 Wizard Run 0 Options --------- ASCII 0 Keyboard 0 Movement Mouse Keybinds 0 Fullscreen 0 Font 32/Smallcaps Map View 76x50 Tactical HUD 1 Map Filters NONE Filters NONE Steam 0 RUN: e96ac9c0-ab98-4a1a-804e-bb0f4d444b5f